[Event "Championnat du monde jeunes U12F"]
[Date "2024.11.24"]
[White "Messali Anger, Ilyana"]
[Black "Li, Sophie"]
[WhiteElo "1687"]
[BlackElo "1798"]
[Round "9.12"]
[Result "0-1"]
[TimeControl "5400+30"]

1. e4 {[%clk 1:30:55]} 1... d5 {[%clk 1:30:48]} 2. exd5 {[%clk 1:31:06]} 2...
Qxd5 {[%clk 1:30:46]} 3. Nc3 {[%clk 1:30:55]} 3... Qa5 {[%clk 1:30:45]} 4. d4
{[%clk 1:29:33]} 4... Nf6 {[%clk 1:29:56]} 5. Bd2 {[%clk 1:28:00]} 5... Bg4
{[%clk 1:29:46]} 6. Be2 {[%clk 1:14:36]} 6... Bxe2 {[%clk 1:29:46]} 7. Qxe2
{[%clk 1:14:27]} 7... Nc6 {[%clk 1:26:00]} 8. Nb5 {[%clk 1:03:00]} 8... Qb6
{[%clk 1:26:11]} 9. d5 {[%clk 0:56:10]} 9... Nxd5 {[%clk 1:14:16]} 10. c4 {[%clk
0:48:35]} 10... Ndb4 {[%clk 1:14:30]} 11. Bxb4 {[%clk 0:40:07]} 11... Nxb4
{[%clk 1:14:48]} 12. O-O-O {[%clk 0:39:46]} 12... Nc6 {[%clk 1:08:21]} 13. Qg4
{[%clk 0:33:23]} 13... e6 {[%clk 1:05:58]} 14. Nf3 {[%clk 0:29:57]} 14... a6
{[%clk 1:01:27]} 15. Nbd4 {[%clk 0:28:08]} 15... Nxd4 {[%clk 1:00:19]} 16. Nxd4
{[%clk 0:24:02]} 16... O-O-O {[%clk 0:59:21]} 17. Nb3 {[%clk 0:23:00]} 17...
Rxd1+ {[%clk 0:54:32]} 18. Rxd1 {[%clk 0:22:53]} 18... Qxf2 {[%clk 0:51:39]} 19.
Qg5 {[%clk 0:18:59]} 19... f6 {[%clk 0:48:41]} 20. Qg4 {[%clk 0:18:06]} 20...
Qe3+ {[%clk 0:48:46]} 21. Kb1 {[%clk 0:18:18]} 21... Qe5 {[%clk 0:46:29]} 22.
Nd4 {[%clk 0:15:54]} 22... f5 {[%clk 0:45:28]} 23. Qh4 {[%clk 0:15:19]} 23...
Bc5 {[%clk 0:44:49]} 24. Nf3 {[%clk 0:13:36]} 24... Qe2 {[%clk 0:44:08]} 25. Rd2
{[%clk 0:13:31]} 25... Qf1+ {[%clk 0:44:20]} 26. Kc2 {[%clk 0:10:45]} 26... Be3
{[%clk 0:43:26]} 27. Rd3 {[%clk 0:09:40]} 27... Qxg2+ {[%clk 0:43:01]} 28. Nd2
{[%clk 0:09:25]} 28... Bxd2 {[%clk 0:43:20]} 29. Rxd2 {[%clk 0:09:42]} 29... Qc6
{[%clk 0:42:30]} 30. Qd4 {[%clk 0:08:27]} 30... Qe4+ {[%clk 0:41:57]} 31. Qxe4
{[%clk 0:08:43]} 31... fxe4 {[%clk 0:42:23]} 32. Re2 {[%clk 0:06:29]} 32... Rf8
{[%clk 0:42:46]} 33. Kc3 {[%clk 0:06:03]} 33... Rf4 {[%clk 0:42:18]} 34. Kd4
{[%clk 0:05:55]} 34... Kd7 {[%clk 0:42:18]} 35. Ke5 {[%clk 0:05:28]} 35... Rh4
{[%clk 0:42:39]} 36. Kd4 {[%clk 0:05:00]} 36... Ke7 {[%clk 0:42:45]} 37. Rxe4
{[%clk 0:03:54]} 37... Rxe4+ {[%clk 0:43:08]} 38. Kxe4 {[%clk 0:04:15]} 38...
Kd6 {[%clk 0:43:25]} 39. b4 {[%clk 0:04:04]} 39... b6 {[%clk 0:43:37]} 40. a4
{[%clk 0:03:36]} 40... c5 {[%clk 0:43:47]} 41. b5 {[%clk 0:03:14]} 41... a5
{[%clk 0:43:56]} 42. h4 {[%clk 0:03:02]} 42... g6 {[%clk 0:44:19]} 43. Kf4
{[%clk 0:01:53]} 43... h6 {[%clk 0:44:44]} 44. Ke4 {[%clk 0:01:53]} 44... g5
{[%clk 0:45:01]} 45. h5 {[%clk 0:01:59]} 45... g4 {[%clk 0:44:53]} 46. Kf4
{[%clk 0:02:02]} 46... g3 {[%clk 0:45:13]} 47. Kxg3 {[%clk 0:02:13]} 47... Ke5
{[%clk 0:45:40]} 48. Kf3 {[%clk 0:01:28]} 48... Kd4 {[%clk 0:46:03]} 49. Kf4
{[%clk 0:01:43]} 49... e5+ {[%clk 0:46:29]} 50. Kf5 {[%clk 0:01:27]} 50... e4
{[%clk 0:46:56]} 51. Kg6 {[%clk 0:01:44]} 51... e3 {[%clk 0:47:23]} 52. Kxh6
{[%clk 0:02:00]} 52... e2 {[%clk 0:47:50]} 53. Kg7 {[%clk 0:02:13]} 53... e1=Q
{[%clk 0:48:15]} 54. h6 {[%clk 0:02:34]} 54... Qe7+ {[%clk 0:48:42]} 55. Kg8
{[%clk 0:02:41]} 55... Qg5+ {[%clk 0:49:08]} 56. Kh7 {[%clk 0:03:01]} 56... Kxc4
{[%clk 0:49:32]} 57. Kh8 {[%clk 0:03:21]} 57... Qxh6+ {[%clk 0:49:58]} 58. Kg8
{[%clk 0:03:40]} 58... Qe6+ {[%clk 0:50:09]} 59. Kh8 {[%clk 0:03:11]} 59... Qd7
{[%clk 0:50:36]} 60. Kg8 {[%clk 0:03:34]} 60... Kd5 {[%clk 0:51:01]} 61. Kh8
{[%clk 0:03:49]} 61... Ke6 {[%clk 0:50:45]} 62. Kg8 {[%clk 0:04:09]} 62... Kf6
{[%clk 0:51:12]} 63. Kh8 {[%clk 0:04:31]} 63... Qg7# 0-1

[Variant "Standard"]
[Site "Europe Echecs"]

[Event "Championnat du monde jeunes U12F"]
[Date "2024.11.24"]
[White "Bassari, Senem Gul"]
[Black "Sevastsyanchuk, Anastasiya"]
[WhiteElo "1778"]
[BlackElo "1595"]
[Round "9.13"]
[Result "1-0"]
[TimeControl "5400+30"]

1. e4 {[%clk 1:30:56]} 1... c6 {[%clk 1:30:53]} 2. Nc3 {[%clk 1:31:23]} 2... d5
{[%clk 1:31:11]} 3. Nf3 {[%clk 1:31:50]} 3... Bg4 {[%clk 1:31:29]} 4. h3 {[%clk
1:32:15]} 4... Bxf3 {[%clk 1:31:46]} 5. Qxf3 {[%clk 1:32:40]} 5... e6 {[%clk
1:32:04]} 6. d4 {[%clk 1:33:00]} 6... Nf6 {[%clk 1:32:24]} 7. Bd3 {[%clk
1:33:16]} 7... dxe4 {[%clk 1:32:41]} 8. Nxe4 {[%clk 1:33:36]} 8... Qxd4 {[%clk
1:32:55]} 9. c3 {[%clk 1:34:03]} 9... Qd8 {[%clk 1:33:07]} 10. O-O {[%clk
1:34:07]} 10... Nbd7 {[%clk 1:24:43]} 11. Rd1 {[%clk 1:33:55]} 11... Be7 {[%clk
1:22:16]} 12. Bf4 {[%clk 1:32:40]} 12... e5 {[%clk 1:18:20]} 13. Bg3 {[%clk
1:31:02]} 13... Qc7 {[%clk 1:09:05]} 14. b4 {[%clk 1:19:09]} 14... a6 {[%clk
1:04:42]} 15. Bc2 {[%clk 1:16:39]} 15... c5 {[%clk 0:54:19]} 16. bxc5 {[%clk
1:06:16]} 16... Bxc5 {[%clk 0:50:27]} 17. Nxc5 {[%clk 1:04:49]} 17... Qxc5
{[%clk 0:50:32]} 18. Bf5 {[%clk 1:02:56]} 18... Qc7 {[%clk 0:46:47]} 19. Rab1
{[%clk 0:58:20]} 19... Rb8 {[%clk 0:45:13]} 20. Bxd7+ {[%clk 0:48:16]} 20...
Nxd7 {[%clk 0:45:35]} 21. Qd5 {[%clk 0:47:16]} 21... Ke7 {[%clk 0:32:03]} 22.
Qe4 {[%clk 0:41:07]} 22... Qc6 {[%clk 0:29:35]} 23. Rxd7+ {[%clk 0:35:47]} 23...
Kxd7 {[%clk 0:21:06]} 24. Rd1+ {[%clk 0:36:11]} 24... Kc8 {[%clk 0:16:21]} 25.
Qxe5 {[%clk 0:36:21]} 25... Ra8 {[%clk 0:14:36]} 26. Rd6 {[%clk 0:35:27]} 26...
Qb5 {[%clk 0:14:23]} 27. Rd5 {[%clk 0:35:16]} 27... Qc6 {[%clk 0:13:53]} 28. Rc5
{[%clk 0:35:34]} 28... Ra7 {[%clk 0:14:18]} 29. Rxc6+ {[%clk 0:35:45]} 29...
bxc6 {[%clk 0:14:42]} 30. Qb8+ {[%clk 0:36:10]} 1-0

[Variant "Standard"]
[Site "Europe Echecs"]

[Event "Championnat du monde jeunes U12F"]
[Date "2024.11.24"]
[White "Rzadkowska, Kaja"]
[Black "Xia, Miaoyan"]
[WhiteElo "1798"]
[BlackElo "1711"]
[Round "9.14"]
[Result "1-0"]
[TimeControl "5400+30"]

1. e4 {[%clk 1:30:59]} 1... e5 {[%clk 1:30:54]} 2. Nc3 {[%clk 1:31:25]} 2... Nc6
{[%clk 1:31:00]} 3. g3 {[%clk 1:31:45]} 3... Nf6 {[%clk 1:30:59]} 4. Bg2 {[%clk
1:32:02]} 4... d6 {[%clk 1:30:41]} 5. d3 {[%clk 1:31:38]} 5... Be7 {[%clk
1:30:38]} 6. Nge2 {[%clk 1:31:17]} 6... O-O {[%clk 1:30:01]} 7. O-O {[%clk
1:31:08]} 7... Bd7 {[%clk 1:26:13]} 8. f4 {[%clk 1:29:20]} 8... Bg4 {[%clk
1:19:00]} 9. h3 {[%clk 1:26:16]} 9... Bxe2 {[%clk 1:11:19]} 10. Nxe2 {[%clk
1:24:10]} 10... exf4 {[%clk 1:04:53]} 11. gxf4 {[%clk 1:19:17]} 11... Kh8 {[%clk
0:56:51]} 12. Ng3 {[%clk 1:16:38]} 12... Rg8 {[%clk 0:47:54]} 13. Be3 {[%clk
1:04:57]} 13... Qd7 {[%clk 0:43:17]} 14. d4 {[%clk 0:58:12]} 14... Nd8 {[%clk
0:27:14]} 15. Qe2 {[%clk 0:50:35]} 15... g6 {[%clk 0:23:10]} 16. Kh2 {[%clk
0:43:33]} 16... b6 {[%clk 0:19:22]} 17. e5 {[%clk 0:41:45]} 17... d5 {[%clk
0:14:02]} 18. exf6 {[%clk 0:40:51]} 18... Bxf6 {[%clk 0:14:17]} 19. c4 {[%clk
0:36:35]} 19... c6 {[%clk 0:12:48]} 20. cxd5 {[%clk 0:36:57]} 20... cxd5 {[%clk
0:12:59]} 21. Qf3 {[%clk 0:36:56]} 21... Rc8 {[%clk 0:12:28]} 22. Qxd5 {[%clk
0:36:07]} 22... Qxd5 {[%clk 0:12:34]} 23. Bxd5 {[%clk 0:36:36]} 23... Re8 {[%clk
0:12:46]} 24. Bg1 {[%clk 0:36:05]} 24... Ne6 {[%clk 0:12:21]} 25. Bxe6 {[%clk
0:36:02]} 25... Rxe6 {[%clk 0:12:32]} 26. Rac1 {[%clk 0:33:42]} 26... Rd8 {[%clk
0:11:48]} 27. Rfd1 {[%clk 0:33:18]} 27... Re7 {[%clk 0:11:36]} 28. Rc6 {[%clk
0:33:01]} 28... Bg7 {[%clk 0:11:24]} 29. Rd3 {[%clk 0:29:49]} 29... Red7 {[%clk
0:10:38]} 30. Ne2 {[%clk 0:29:00]} 30... Re7 {[%clk 0:10:16]} 31. Re3 {[%clk
0:27:53]} 31... Red7 {[%clk 0:09:17]} 32. Rd3 {[%clk 0:24:57]} 32... Re7 {[%clk
0:09:07]} 33. Nc3 {[%clk 0:24:09]} 33... Red7 {[%clk 0:08:32]} 34. Rc4 {[%clk
0:21:39]} 34... a6 {[%clk 0:06:36]} 35. a4 {[%clk 0:16:50]} 35... Rb7 {[%clk
0:05:52]} 36. d5 {[%clk 0:15:14]} 36... Rd6 {[%clk 0:05:01]} 37. Rc8+ {[%clk
0:14:10]} 1-0

[Variant "Standard"]
[Site "Europe Echecs"]

[Event "Championnat du monde jeunes U12F"]
[Date "2024.11.24"]
[White "Sri Darshini T"]
[Black "Alcantara, Levanah"]
[WhiteElo "1681"]
[BlackElo "1753"]
[Round "9.15"]
[Result "1-0"]
[TimeControl "5400+30"]

1. d4 {[%clk 1:30:58]} 1... d5 {[%clk 1:30:52]} 2. c4 {[%clk 1:31:24]} 2... e6
{[%clk 1:31:13]} 3. Nc3 {[%clk 1:31:50]} 3... Be7 {[%clk 1:31:32]} 4. Nf3 {[%clk
1:32:16]} 4... Nf6 {[%clk 1:31:54]} 5. Bg5 {[%clk 1:32:42]} 5... O-O {[%clk
1:32:05]} 6. e3 {[%clk 1:33:09]} 6... Nbd7 {[%clk 1:32:10]} 7. Qc2 {[%clk
1:32:51]} 7... a6 {[%clk 1:31:19]} 8. Rd1 {[%clk 1:33:06]} 8... dxc4 {[%clk
1:28:09]} 9. Bxc4 {[%clk 1:33:29]} 9... b5 {[%clk 1:27:59]} 10. Be2 {[%clk
1:33:09]} 10... Bb7 {[%clk 1:27:49]} 11. a3 {[%clk 1:33:09]} 11... Rc8 {[%clk
1:19:29]} 12. b4 {[%clk 1:33:08]} 12... Nd5 {[%clk 1:16:59]} 13. Bxe7 {[%clk
1:26:51]} 13... Qxe7 {[%clk 1:15:29]} 14. O-O {[%clk 1:23:04]} 14... Nxc3 {[%clk
1:09:31]} 15. Qxc3 {[%clk 1:23:24]} 15... Rfe8 {[%clk 1:02:24]} 16. Rc1 {[%clk
1:07:10]} 16... e5 {[%clk 0:57:23]} 17. Nxe5 {[%clk 1:01:55]} 17... Nxe5 {[%clk
0:56:04]} 18. dxe5 {[%clk 1:02:22]} 18... Qxe5 {[%clk 0:54:51]} 19. Qxe5 {[%clk
1:02:03]} 19... Rxe5 {[%clk 0:55:12]} 20. Rfd1 {[%clk 1:02:28]} 20... Rd5 {[%clk
0:50:42]} 21. Rxd5 {[%clk 0:52:38]} 21... Bxd5 {[%clk 0:50:50]} 22. Bg4 {[%clk
0:52:50]} 22... Be6 {[%clk 0:47:34]} 23. Bf3 {[%clk 0:52:01]} 23... Bc4 {[%clk
0:45:18]} 24. Bb7 {[%clk 0:52:07]} 24... Rd8 {[%clk 0:44:33]} 25. Bxa6 {[%clk
0:52:16]} 25... Ra8 {[%clk 0:43:09]} 26. Rd1 {[%clk 0:46:44]} 26... g6 {[%clk
0:39:52]} 27. Bb7 {[%clk 0:47:09]} 27... Rxa3 {[%clk 0:40:08]} 28. h3 {[%clk
0:46:46]} 28... Rb3 {[%clk 0:35:11]} 29. Rd7 {[%clk 0:46:39]} 29... Rxb4 {[%clk
0:35:10]} 30. Rxc7 {[%clk 0:46:59]} 30... Ra4 {[%clk 0:33:31]} 31. Rc5 {[%clk
0:40:52]} 31... Ra7 {[%clk 0:32:06]} 32. Bf3 {[%clk 0:40:15]} 32... Kg7 {[%clk
0:30:45]} 33. Rc8 {[%clk 0:39:52]} 33... Ra6 {[%clk 0:28:53]} 34. Rb8 {[%clk
0:40:07]} 34... Ra2 {[%clk 0:28:06]} 35. Rb7 {[%clk 0:31:42]} 35... Rb2 {[%clk
0:26:12]} 36. Rc7 {[%clk 0:31:01]} 36... Be6 {[%clk 0:25:53]} 37. Rb7 {[%clk
0:28:39]} 37... Rb1+ {[%clk 0:25:34]} 38. Kh2 {[%clk 0:29:02]} 38... b4 {[%clk
0:25:40]} 39. Be4 {[%clk 0:29:01]} 39... Rb2 {[%clk 0:25:45]} 40. Kg3 {[%clk
0:28:20]} 40... b3 {[%clk 0:25:15]} 41. f4 {[%clk 0:25:56]} 41... Rd2 {[%clk
0:21:37]} 42. Kf3 {[%clk 0:24:13]} 42... Bc4 {[%clk 0:19:21]} 43. Kg3 {[%clk
0:22:26]} 43... Kh6 {[%clk 0:18:06]} 44. Rb6 {[%clk 0:20:23]} 44... Kg7 {[%clk
0:16:21]} 45. Rb4 {[%clk 0:17:51]} 45... Be6 {[%clk 0:16:10]} 46. Rb7 {[%clk
0:15:55]} 46... Rd7 {[%clk 0:13:26]} 47. Rb6 {[%clk 0:15:14]} 47... Kf8 {[%clk
0:12:42]} 48. Kf3 {[%clk 0:14:56]} 48... Ke7 {[%clk 0:11:44]} 49. Ke2 {[%clk
0:15:10]} 49... Rd6 {[%clk 0:10:17]} 50. Rb4 {[%clk 0:15:06]} 50... Ra6 {[%clk
0:09:30]} 51. g4 {[%clk 0:13:24]} 51... f5 {[%clk 0:08:49]} 52. gxf5 {[%clk
0:13:32]} 52... gxf5 {[%clk 0:08:48]} 53. Bd3 {[%clk 0:13:31]} 53... Rd6 {[%clk
0:07:35]} 54. h4 {[%clk 0:10:41]} 54... Kf6 {[%clk 0:07:15]} 55. e4 {[%clk
0:10:43]} 55... fxe4 {[%clk 0:06:40]} 56. Bxe4 {[%clk 0:11:11]} 56... Rd7 {[%clk
0:05:41]} 57. Rb6 {[%clk 0:10:34]} 57... Kf7 {[%clk 0:01:56]} 58. Bxh7 {[%clk
0:10:32]} 58... Ra7 {[%clk 0:01:28]} 59. Kd2 {[%clk 0:08:31]} 59... Ra2+ {[%clk
0:01:16]} 60. Kc1 {[%clk 0:08:37]} 60... Rf2 {[%clk 0:01:16]} 61. Rb4 {[%clk
0:08:37]} 61... Kf6 {[%clk 0:00:56]} 62. h5 {[%clk 0:08:35]} 62... Rh2 {[%clk
0:01:05]} 63. Bg6 {[%clk 0:08:49]} 63... Rh1+ {[%clk 0:01:07]} 64. Kb2 {[%clk
0:08:38]} 64... Rh3 {[%clk 0:01:09]} 65. f5 {[%clk 0:06:10]} 65... Bd7 {[%clk
0:00:50]} 66. Rb6+ {[%clk 0:06:25]} 66... Kg5 {[%clk 0:00:43]} 67. f6 {[%clk
0:06:30]} 67... Rf3 {[%clk 0:00:59]} 68. f7 {[%clk 0:06:51]} 68... Kh6 {[%clk
0:01:03]} 69. Be4+ {[%clk 0:06:40]} 1-0

[Variant "Standard"]
[Site "Europe Echecs"]

[Event "Championnat du monde jeunes U12F"]
[Date "2024.11.24"]
[White "Sinkar, Anagha Aniket"]
[Black "Sabou, Stefania Theodora"]
[WhiteElo "1723"]
[BlackElo "1736"]
[Round "9.16"]
[Result "1/2-1/2"]
[TimeControl "5400+30"]

1. e4 {[%clk 1:30:41]} 1... c5 {[%clk 1:30:50]} 2. c3 {[%clk 1:30:55]} 2... Nf6
{[%clk 1:31:05]} 3. e5 {[%clk 1:31:10]} 3... Nd5 {[%clk 1:31:23]} 4. Nf3 {[%clk
1:31:27]} 4... Nc6 {[%clk 1:31:43]} 5. Bc4 {[%clk 1:31:46]} 5... Nb6 {[%clk
1:32:05]} 6. Bb3 {[%clk 1:31:59]} 6... d5 {[%clk 1:32:29]} 7. exd6 {[%clk
1:32:10]} 7... Qxd6 {[%clk 1:32:51]} 8. O-O {[%clk 1:32:20]} 8... Bf5 {[%clk
1:33:11]} 9. d4 {[%clk 1:28:54]} 9... c4 {[%clk 1:33:29]} 10. Bc2 {[%clk
1:29:00]} 10... Bxc2 {[%clk 1:33:49]} 11. Qxc2 {[%clk 1:29:22]} 11... e6 {[%clk
1:34:14]} 12. Nbd2 {[%clk 1:26:24]} 12... Be7 {[%clk 1:33:40]} 13. Ne4 {[%clk
1:23:48]} 13... Qd5 {[%clk 1:32:57]} 14. Re1 {[%clk 1:22:48]} 14... O-O {[%clk
1:33:02]} 15. Nfg5 {[%clk 1:22:31]} 15... Qf5 {[%clk 1:29:42]} 16. Qe2 {[%clk
1:13:18]} 16... h6 {[%clk 1:27:30]} 17. Ng3 {[%clk 1:11:40]} 17... Qg6 {[%clk
1:26:27]} 18. Nh3 {[%clk 1:09:33]} 18... Bd6 {[%clk 1:24:10]} 19. Nf4 {[%clk
1:08:00]} 19... Bxf4 {[%clk 1:24:10]} 20. Bxf4 {[%clk 1:08:19]} 20... Nd5 {[%clk
1:18:35]} 21. Bd2 {[%clk 1:05:01]} 21... b5 {[%clk 1:14:43]} 22. Nh5 {[%clk
0:57:22]} 22... Nce7 {[%clk 1:10:36]} 23. Rab1 {[%clk 0:52:37]} 23... a6 {[%clk
1:09:57]} 24. b3 {[%clk 0:51:16]} 24... Rac8 {[%clk 1:09:37]} 25. a4 {[%clk
0:46:41]} 25... cxb3 {[%clk 1:01:46]} 26. axb5 {[%clk 0:46:23]} 26... axb5
{[%clk 0:59:44]} 27. Rxb3 {[%clk 0:46:04]} 27... Qc2 {[%clk 0:55:56]} 28. Rxb5
{[%clk 0:44:04]} 28... Nxc3 {[%clk 0:52:55]} 29. Qe5 {[%clk 0:42:34]} 29... Qg6
{[%clk 0:51:35]} 30. Nf4 {[%clk 0:40:03]} 30... Qf5 {[%clk 0:46:24]} 31. Qxf5
{[%clk 0:34:36]} 31... Nxf5 {[%clk 0:46:42]} 32. Bxc3 {[%clk 0:35:00]} 32...
Rxc3 {[%clk 0:47:03]} 33. d5 {[%clk 0:35:01]} 33... exd5 {[%clk 0:47:00]} 34.
Nxd5 {[%clk 0:34:40]} 34... Rc6 {[%clk 0:46:34]} 35. h3 {[%clk 0:34:06]} 1/2-1/2

[Variant "Standard"]
[Site "Europe Echecs"]

[Event "Championnat du monde jeunes U12F"]
[Date "2024.11.24"]
[White "Ivaschenko, Anna"]
[Black "Gailevska, Milana"]
[WhiteElo "1732"]
[BlackElo "1698"]
[Round "9.17"]
[Result "1-0"]
[TimeControl "5400+30"]

1. Nf3 {[%clk 1:30:57]} 1... d5 {[%clk 1:30:51]} 2. c4 {[%clk 1:31:22]} 2... e6
{[%clk 1:31:11]} 3. g3 {[%clk 1:31:49]} 3... Nf6 {[%clk 1:31:12]} 4. Bg2 {[%clk
1:32:11]} 4... c6 {[%clk 1:30:27]} 5. b3 {[%clk 1:32:14]} 5... b6 {[%clk
1:30:03]} 6. O-O {[%clk 1:32:01]} 6... Be7 {[%clk 1:29:11]} 7. Bb2 {[%clk
1:31:50]} 7... Bb7 {[%clk 1:28:11]} 8. d3 {[%clk 1:30:39]} 8... O-O {[%clk
1:27:52]} 9. Nbd2 {[%clk 1:30:42]} 9... c5 {[%clk 1:26:09]} 10. Ne5 {[%clk
1:12:15]} 10... Qc7 {[%clk 1:20:47]} 11. e4 {[%clk 1:09:17]} 11... d4 {[%clk
1:16:41]} 12. f4 {[%clk 1:08:40]} 12... Nc6 {[%clk 1:16:04]} 13. Nxc6 {[%clk
1:05:45]} 13... Bxc6 {[%clk 1:16:16]} 14. g4 {[%clk 0:59:27]} 14... Nd7 {[%clk
1:10:28]} 15. Qe1 {[%clk 0:54:46]} 15... e5 {[%clk 1:08:56]} 16. f5 {[%clk
0:53:34]} 16... Bg5 {[%clk 1:05:27]} 17. Nf3 {[%clk 0:47:45]} 17... Be3+ {[%clk
1:04:06]} 18. Kh1 {[%clk 0:48:00]} 18... Nf6 {[%clk 1:04:07]} 19. Qh4 {[%clk
0:45:05]} 19... Rfe8 {[%clk 0:55:50]} 20. Bc1 {[%clk 0:38:32]} 20... Bxc1 {[%clk
0:55:44]} 21. Raxc1 {[%clk 0:38:44]} 21... Qe7 {[%clk 0:55:50]} 22. g5 {[%clk
0:33:08]} 22... Nd7 {[%clk 0:56:01]} 23. f6 {[%clk 0:29:00]} 23... Qf8 {[%clk
0:52:07]} 24. Nd2 {[%clk 0:25:12]} 24... g6 {[%clk 0:51:31]} 25. Rf3 {[%clk
0:24:51]} 25... Kh8 {[%clk 0:50:38]} 26. Bh3 {[%clk 0:19:52]} 26... a6 {[%clk
0:46:37]} 27. Nf1 {[%clk 0:18:39]} 27... Nb8 {[%clk 0:44:26]} 28. Ng3 {[%clk
0:17:56]} 28... Bd7 {[%clk 0:43:15]} 29. Nf5 {[%clk 0:15:36]} 29... Bxf5 {[%clk
0:32:11]} 30. exf5 {[%clk 0:15:33]} 30... Ra7 {[%clk 0:31:29]} 31. Rcf1 {[%clk
0:13:08]} 31... Nc6 {[%clk 0:30:16]} 32. Qe4 {[%clk 0:11:39]} 32... Qd6 {[%clk
0:29:13]} 33. fxg6 {[%clk 0:11:28]} 33... Rc7 {[%clk 0:27:30]} 34. g7+ {[%clk
0:11:22]} 34... Kg8 {[%clk 0:27:51]} 35. Bf5 {[%clk 0:11:43]} 1-0

[Variant "Standard"]
[Site "Europe Echecs"]

[Event "Championnat du monde jeunes U12F"]
[Date "2024.11.24"]
[White "Harutyunyan, Gabriela"]
[Black "Smirnova, Viktoria A"]
[WhiteElo "1730"]
[BlackElo "1658"]
[Round "9.18"]
[Result "1/2-1/2"]
[TimeControl "5400+30"]

1. e4 {[%clk 1:30:40]} 1... e6 {[%clk 1:30:52]} 2. d4 {[%clk 1:30:56]} 2... d5
{[%clk 1:31:15]} 3. Nc3 {[%clk 1:31:21]} 3... Bb4 {[%clk 1:31:37]} 4. e5 {[%clk
1:31:34]} 4... Ne7 {[%clk 1:31:59]} 5. Bd3 {[%clk 1:28:54]} 5... c5 {[%clk
1:29:36]} 6. Bd2 {[%clk 1:26:47]} 6... a6 {[%clk 1:25:37]} 7. dxc5 {[%clk
1:24:08]} 7... Bxc5 {[%clk 1:08:19]} 8. Qg4 {[%clk 1:20:31]} 8... Ng6 {[%clk
1:02:19]} 9. Nf3 {[%clk 1:20:08]} 9... Nc6 {[%clk 0:57:26]} 10. Bxg6 {[%clk
1:18:03]} 10... hxg6 {[%clk 0:57:04]} 11. h4 {[%clk 1:13:46]} 11... Qc7 {[%clk
0:55:52]} 12. Qg3 {[%clk 1:09:18]} 12... Bd7 {[%clk 0:54:23]} 13. Bf4 {[%clk
1:04:45]} 13... Qb6 {[%clk 0:49:16]} 14. Rb1 {[%clk 0:58:24]} 14... Ne7 {[%clk
0:39:57]} 15. O-O {[%clk 0:51:09]} 15... Nf5 {[%clk 0:39:22]} 16. Qh2 {[%clk
0:50:10]} 16... Bc6 {[%clk 0:36:48]} 17. Qh3 {[%clk 0:39:49]} 17... d4 {[%clk
0:34:28]} 18. Ne2 {[%clk 0:39:47]} 18... Bb5 {[%clk 0:17:36]} 19. b4 {[%clk
0:36:44]} 19... Bxe2 {[%clk 0:16:30]} 20. bxc5 {[%clk 0:37:08]} 20... Qc6 {[%clk
0:16:51]} 21. Rfe1 {[%clk 0:34:02]} 21... Bxf3 {[%clk 0:16:47]} 22. Qxf3 {[%clk
0:33:28]} 22... Qxf3 {[%clk 0:17:09]} 23. gxf3 {[%clk 0:33:54]} 23... Nxh4
{[%clk 0:17:10]} 24. Rb3 {[%clk 0:34:09]} 24... Rh5 {[%clk 0:11:43]} 25. Bg3
{[%clk 0:33:56]} 25... Rc8 {[%clk 0:09:50]} 26. Bxh4 {[%clk 0:31:18]} 26... Rxh4
{[%clk 0:10:16]} 27. Rxb7 {[%clk 0:30:50]} 27... Rxc5 {[%clk 0:10:08]} 28. Ra7
{[%clk 0:28:57]} 28... Rxc2 {[%clk 0:10:08]} 29. Rb1 {[%clk 0:27:11]} 29... Rc8
{[%clk 0:10:20]} 30. Rb4 {[%clk 0:20:56]} 30... Rf4 {[%clk 0:08:23]} 31. Rxa6
{[%clk 0:18:08]} 31... Rd8 {[%clk 0:06:00]} 32. Kg2 {[%clk 0:13:28]} 32... d3
33. Rb1 d2 34. Rd1 Rc4 35. Rb6 Rc1 1/2-1/2

[Variant "Standard"]
[Site "Europe Echecs"]

[Event "Championnat du monde jeunes U12F"]
[Date "2024.11.24"]
[White "Ribreau, Anna"]
[Black "Bogomolnikova, Zlata"]
[WhiteElo "1726"]
[BlackElo "1628"]
[Round "9.19"]
[Result "0-1"]
[TimeControl "5400+30"]

1. Nf3 {[%clk 1:25:55]} 1... d5 {[%clk 1:30:44]} 2. g3 {[%clk 1:25:53]} 2... c6
{[%clk 1:30:59]} 3. Bg2 {[%clk 1:25:44]} 3... Nf6 {[%clk 1:30:11]} 4. O-O {[%clk
1:25:11]} 4... Bf5 {[%clk 1:29:16]} 5. d3 {[%clk 1:24:44]} 5... e6 {[%clk
1:28:24]} 6. c4 {[%clk 1:23:52]} 6... dxc4 {[%clk 1:28:07]} 7. dxc4 {[%clk
1:22:57]} 7... Qxd1 {[%clk 1:24:56]} 8. Rxd1 {[%clk 1:22:55]} 8... Nbd7 {[%clk
1:24:54]} 9. Bf4 {[%clk 1:19:50]} 9... Bc5 {[%clk 1:21:04]} 10. Bd6 {[%clk
1:14:17]} 10... Bxd6 {[%clk 1:16:59]} 11. Rxd6 {[%clk 1:14:26]} 11... Nb6 {[%clk
1:14:30]} 12. b3 {[%clk 1:12:45]} 12... Nbd5 {[%clk 1:02:05]} 13. cxd5 {[%clk
1:07:49]} 13... cxd5 {[%clk 1:01:58]} 14. Ng5 {[%clk 1:07:04]} 14... h6 {[%clk
0:57:33]} 15. e4 {[%clk 1:06:12]} 15... hxg5 {[%clk 0:56:34]} 16. exf5 {[%clk
1:06:25]} 16... Ke7 {[%clk 0:56:49]} 17. fxe6 {[%clk 1:03:41]} 17... fxe6 {[%clk
0:56:02]} 18. Rxd5 {[%clk 1:02:42]} 18... Nxd5 {[%clk 0:48:52]} 19. Na3 {[%clk
1:02:33]} 19... Rac8 {[%clk 0:47:39]} 20. Re1 {[%clk 1:02:42]} 20... Rc5 {[%clk
0:40:47]} 21. Nc4 {[%clk 0:58:19]} 21... b5 {[%clk 0:36:46]} 22. Ne5 {[%clk
0:57:33]} 22... Rd8 {[%clk 0:29:27]} 23. f4 {[%clk 0:41:45]} 23... gxf4 {[%clk
0:26:41]} 24. gxf4 {[%clk 0:41:19]} 24... Nxf4 {[%clk 0:16:50]} 25. Nc6+ {[%clk
0:40:50]} 25... Rxc6 {[%clk 0:16:20]} 26. Bxc6 {[%clk 0:41:06]} 26... b4 {[%clk
0:15:43]} 27. Re4 {[%clk 0:36:53]} 27... Nd3 {[%clk 0:15:07]} 28. Rh4 {[%clk
0:32:15]} 28... e5 {[%clk 0:12:17]} 29. Re4 {[%clk 0:29:12]} 29... Kf6 {[%clk
0:11:48]} 30. Kg2 {[%clk 0:28:35]} 30... Nf4+ {[%clk 0:11:44]} 31. Kf3 {[%clk
0:28:09]} 31... a5 {[%clk 0:11:44]} 32. Rc4 {[%clk 0:17:47]} 32... Rd2 {[%clk
0:11:35]} 33. h4 {[%clk 0:17:31]} 33... Rxa2 {[%clk 0:11:22]} 34. Ba4 {[%clk
0:17:46]} 34... Rd2 {[%clk 0:10:12]} 35. Ke4 {[%clk 0:17:08]} 35... Ne6 {[%clk
0:08:59]} 36. Kf3 {[%clk 0:12:39]} 36... Rd4 {[%clk 0:08:06]} 37. Bb5 {[%clk
0:12:47]} 37... Rxc4 {[%clk 0:06:29]} 38. Bxc4 {[%clk 0:13:08]} 38... Nc5 {[%clk
0:06:24]} 39. Ke3 {[%clk 0:11:34]} 39... Kf5 {[%clk 0:05:44]} 40. Kf3 {[%clk
0:08:35]} 40... e4+ {[%clk 0:04:32]} 41. Kg3 {[%clk 0:08:24]} 41... a4 {[%clk
0:04:06]} 42. bxa4 {[%clk 0:08:31]} 42... Nxa4 {[%clk 0:04:15]} 0-1

[Variant "Standard"]
[Site "Europe Echecs"]